[Event "Late-Titled-Tuesday-Blitz-May-28-2024"]
[Site "Chess.com"]
[Date "2024.05.28"]
[Round "5"]
[White "DonMicheleCorleone"]
[Black "Jarming"]
[Result "1/2-1/2"]
[WhiteElo "2503"]
[BlackElo "2643"]
[TimeControl "180+1"]
[EndTime "14:57:13 PDT"]
[Termination "Game drawn - insufficient material"]

1. e4 {[%clk 0:02:37.6]} 1... c5 {[%clk 0:02:57.6]} 2. c3 {[%clk 0:02:37.2]}
2... g6 {[%clk 0:02:54.3]} 3. d4 {[%clk 0:02:36.8]} 3... cxd4 {[%clk 0:02:55.2]}
4. cxd4 {[%clk 0:02:37.3]} 4... d5 {[%clk 0:02:56.1]} 5. exd5 {[%clk 0:02:36.6]}
5... Nf6 {[%clk 0:02:55.8]} 6. Nc3 {[%clk 0:02:37.2]} 6... Nxd5 {[%clk
0:02:53.7]} 7. Qb3 {[%clk 0:02:37.5]} 7... Nb6 {[%clk 0:02:49.7]} 8. Be3 {[%clk
0:02:35.2]} 8... Bg7 {[%clk 0:02:47.5]} 9. O-O-O {[%clk 0:02:35.4]} 9... O-O
{[%clk 0:02:47.2]} 10. h4 {[%clk 0:02:34.7]} 10... Nc6 {[%clk 0:02:47]} 11. h5
{[%clk 0:02:33.5]} 11... Bg4 {[%clk 0:02:43.5]} 12. Be2 {[%clk 0:02:32.8]} 12...
Bxe2 {[%clk 0:02:42]} 13. Ngxe2 {[%clk 0:02:32.3]} 13... Rc8 {[%clk 0:02:41.1]}
14. hxg6 {[%clk 0:02:30.8]} 14... hxg6 {[%clk 0:02:42]} 15. Kb1 {[%clk
0:02:27.2]} 15... Na5 {[%clk 0:02:41]} 16. Qb5 {[%clk 0:02:24.5]} 16... Nac4
{[%clk 0:02:41.1]} 17. Bc1 {[%clk 0:01:47.8]} 17... Qd7 {[%clk 0:02:34.7]} 18.
Qg5 {[%clk 0:01:44.2]} 18... Qf5+ {[%clk 0:02:29.8]} 19. Qxf5 {[%clk 0:01:44.3]}
19... gxf5 {[%clk 0:02:30.7]} 20. Ng3 {[%clk 0:01:43.5]} 20... e6 {[%clk
0:02:29.9]} 21. Nh5 {[%clk 0:01:38.9]} 21... Rfd8 {[%clk 0:02:11.6]} 22. Bg5
{[%clk 0:01:33.2]} 22... Rd6 {[%clk 0:02:02.8]} 23. Nf6+ {[%clk 0:00:49.1]}
23... Kf8 {[%clk 0:02:01.3]} 24. Rh7 {[%clk 0:00:48.2]} 24... Nd7 {[%clk
0:01:52.4]} 25. Nxd7+ {[%clk 0:00:44.2]} 25... Rxd7 {[%clk 0:01:53.3]} 26. Rdh1
{[%clk 0:00:43.8]} 26... Rxd4 {[%clk 0:01:41.8]} 27. Rh8+ {[%clk 0:00:34.8]}
27... Bxh8 {[%clk 0:01:40.2]} 28. Rxh8+ {[%clk 0:00:35.7]} 28... Kg7 {[%clk
0:01:40.1]} 29. Rxc8 {[%clk 0:00:36.4]} 29... Rg4 {[%clk 0:01:30.1]} 30. g3
{[%clk 0:00:34.4]} 30... Nb6 {[%clk 0:01:22.2]} 31. Rc7 {[%clk 0:00:23.4]} 31...
Rxg5 {[%clk 0:01:21.5]} 32. Rxb7 {[%clk 0:00:23.7]} 32... f4 {[%clk 0:01:20]}
33. gxf4 {[%clk 0:00:21.9]} 33... Rg4 {[%clk 0:01:19.8]} 34. Rxa7 {[%clk
0:00:17.9]} 34... Rxf4 {[%clk 0:01:18.4]} 35. Rb7 {[%clk 0:00:18.2]} 35... Nc4
{[%clk 0:01:16.7]} 36. Nd1 {[%clk 0:00:12.4]} 36... Re4 {[%clk 0:01:09.7]} 37.
Kc2 {[%clk 0:00:08.8]} 37... Re1 {[%clk 0:01:00.6]} 38. a4 {[%clk 0:00:07.5]}
38... Nd6 {[%clk 0:00:58.1]} 39. Rb6 {[%clk 0:00:06.2]} 39... Nf5 {[%clk
0:00:54.8]} 40. a5 {[%clk 0:00:05.7]} 40... Re2+ {[%clk 0:00:53.7]} 41. Kd3
{[%clk 0:00:05]} 41... Re1 {[%clk 0:00:53.9]} 42. Kd2 {[%clk 0:00:04.8]} 42...
Re5 {[%clk 0:00:49.5]} 43. b4 {[%clk 0:00:05.2]} 43... Rd5+ {[%clk 0:00:45.3]}
44. Kc1 {[%clk 0:00:05.3]} 44... Nd6 {[%clk 0:00:44.9]} 45. Nc3 {[%clk
0:00:04.7]} 45... Rd4 {[%clk 0:00:45.4]} 46. Kc2 {[%clk 0:00:04.5]} 46... Nc4
{[%clk 0:00:45]} 47. Rb7 {[%clk 0:00:04.9]} 47... Rd2+ {[%clk 0:00:43.3]} 48.
Kb3 {[%clk 0:00:05.3]} 48... Ne5 {[%clk 0:00:42.9]} 49. a6 {[%clk 0:00:05.8]}
49... Nc6 {[%clk 0:00:38.5]} 50. a7 {[%clk 0:00:06.2]} 50... Rd8 {[%clk
0:00:34.4]} 51. b5 {[%clk 0:00:06]} 51... Na5+ {[%clk 0:00:31.5]} 52. Kb4 {[%clk
0:00:05.6]} 52... Nxb7 {[%clk 0:00:32.4]} 53. b6 {[%clk 0:00:06.2]} 53... Rd2
{[%clk 0:00:31.8]} 54. Nb5 {[%clk 0:00:05.7]} 54... Rb2+ {[%clk 0:00:29.8]} 55.
Kc4 {[%clk 0:00:05]} 55... Ra2 {[%clk 0:00:28.7]} 56. Nc7 {[%clk 0:00:05.2]}
56... Nd6+ {[%clk 0:00:27.6]} 57. Kc5 {[%clk 0:00:05.3]} 57... Ne4+ {[%clk
0:00:27.5]} 58. Kc6 {[%clk 0:00:05.8]} 58... Rc2+ {[%clk 0:00:27.2]} 59. Kd7
{[%clk 0:00:04.5]} 59... Nc5+ {[%clk 0:00:27]} 60. Kc8 {[%clk 0:00:05]} 60...
Ra2 {[%clk 0:00:26.3]} 61. a8=Q {[%clk 0:00:04.8]} 61... Rxa8+ {[%clk 0:00:26]}
62. Nxa8 {[%clk 0:00:05.7]} 62... f5 {[%clk 0:00:26.4]} 63. Kc7 {[%clk
0:00:05.9]} 63... Kf6 {[%clk 0:00:25.9]} 64. Kc6 {[%clk 0:00:06.4]} 64... Na6
{[%clk 0:00:24.8]} 65. Nc7 {[%clk 0:00:06.2]} 65... Nb8+ {[%clk 0:00:23.8]} 66.
Kd6 {[%clk 0:00:06.2]} 66... e5 {[%clk 0:00:23.4]} 67. Nd5+ {[%clk 0:00:06.6]}
67... Kg5 {[%clk 0:00:22.6]} 68. Kxe5 {[%clk 0:00:07]} 68... Nd7+ {[%clk
0:00:22.9]} 69. Kd6 {[%clk 0:00:06.7]} 69... Nxb6 {[%clk 0:00:23.4]} 70. Nxb6
{[%clk 0:00:06.4]} 70... Kf4 {[%clk 0:00:24.3]} 71. Nd5+ {[%clk 0:00:03.9]}
71... Kf3 {[%clk 0:00:24]} 72. Ke5 {[%clk 0:00:04.3]} 72... Kxf2 {[%clk
0:00:24.4]} 73. Kxf5 {[%clk 0:00:04.6]} 1/2-1/2

[Event "Late-Titled-Tuesday-Blitz-May-28-2024"]
[Site "Chess.com"]
[Date "2024.05.28"]
[Round "5"]
[White "DirtyKabab"]
[Black "GMG"]
[Result "0-1"]
[WhiteElo "2562"]
[BlackElo "2810"]
[TimeControl "180+1"]
[EndTime "14:57:17 PDT"]
[Termination "GMG won on time"]

1. e4 {[%clk 0:03:00.9]} 1... e5 {[%clk 0:03:00]} 2. Nf3 {[%clk 0:03:00.9]} 2...
Nc6 {[%clk 0:03:00.6]} 3. Bb5 {[%clk 0:02:57.5]} 3... a6 {[%clk 0:03:00.9]} 4.
Ba4 {[%clk 0:02:57.4]} 4... Nf6 {[%clk 0:03:01.2]} 5. O-O {[%clk 0:02:57.2]}
5... b5 {[%clk 0:03:01.8]} 6. Bb3 {[%clk 0:02:56.8]} 6... Bb7 {[%clk 0:03:02.5]}
7. d3 {[%clk 0:02:55.3]} 7... Bc5 {[%clk 0:03:01.8]} 8. Nc3 {[%clk 0:02:52.1]}
8... d6 {[%clk 0:02:55.7]} 9. a3 {[%clk 0:02:47]} 9... h6 {[%clk 0:02:49.2]} 10.
Be3 {[%clk 0:02:44.6]} 10... O-O {[%clk 0:02:39.8]} 11. h3 {[%clk 0:02:38.4]}
11... Kh8 {[%clk 0:02:25.8]} 12. Qd2 {[%clk 0:02:29.5]} 12... Bxe3 {[%clk
0:02:07.6]} 13. fxe3 {[%clk 0:02:16.3]} 13... Nd7 {[%clk 0:01:55]} 14. Nh2
{[%clk 0:02:02.1]} 14... Qe8 {[%clk 0:01:54.1]} 15. Qf2 {[%clk 0:01:48.4]} 15...
f6 {[%clk 0:01:51.5]} 16. Qh4 {[%clk 0:01:45.8]} 16... Ne7 {[%clk 0:01:39.1]}
17. Rf2 {[%clk 0:01:20.3]} 17... c6 {[%clk 0:01:32]} 18. Raf1 {[%clk 0:01:18]}
18... d5 {[%clk 0:01:30]} 19. Ng4 {[%clk 0:01:09.4]} 19... Qg6 {[%clk
0:01:29.2]} 20. exd5 {[%clk 0:01:02.3]} 20... cxd5 {[%clk 0:01:29]} 21. e4
{[%clk 0:01:02.4]} 21... dxe4 {[%clk 0:01:20.5]} 22. dxe4 {[%clk 0:00:55.1]}
22... Qg5 {[%clk 0:01:18.5]} 23. Qxg5 {[%clk 0:00:50.5]} 23... hxg5 {[%clk
0:01:19.4]} 24. Nd5 {[%clk 0:00:27]} 24... Nxd5 {[%clk 0:01:01.2]} 25. Bxd5
{[%clk 0:00:27.9]} 25... Bxd5 {[%clk 0:01:00.3]} 26. exd5 {[%clk 0:00:28.8]}
26... Rfc8 {[%clk 0:00:58.7]} 27. Ne3 {[%clk 0:00:27.1]} 27... Rc5 {[%clk
0:00:56.7]} 28. Rd2 {[%clk 0:00:21.7]} 28... g6 {[%clk 0:00:52.6]} 29. g4 {[%clk
0:00:20.8]} 29... Kg7 {[%clk 0:00:52.6]} 30. Kg2 {[%clk 0:00:19.4]} 30... Kf7
{[%clk 0:00:52.9]} 31. Kg3 {[%clk 0:00:16.6]} 31... Ke7 {[%clk 0:00:48.5]} 32.
h4 {[%clk 0:00:16.6]} 32... gxh4+ {[%clk 0:00:48.5]} 33. Kxh4 {[%clk 0:00:17.5]}
33... Rh8+ {[%clk 0:00:48.4]} 34. Kg3 {[%clk 0:00:17.6]} 34... Kd6 {[%clk
0:00:39.6]} 35. Rdf2 {[%clk 0:00:16]} 35... Ke7 {[%clk 0:00:39.4]} 36. Rd2
{[%clk 0:00:15.8]} 36... Rh7 {[%clk 0:00:27]} 37. Rdf2 {[%clk 0:00:14.8]} 37...
Rc8 {[%clk 0:00:25.6]} 38. Rh2 {[%clk 0:00:13]} 38... Rxh2 {[%clk 0:00:23.6]}
39. Kxh2 {[%clk 0:00:13.9]} 39... Kd6 {[%clk 0:00:18.6]} 40. Kg3 {[%clk
0:00:13.8]} 40... Rh8 {[%clk 0:00:18.7]} 41. Rd1 {[%clk 0:00:11.6]} 41... Rf8
{[%clk 0:00:17.8]} 42. Rf1 {[%clk 0:00:09.7]} 42... Nc5 {[%clk 0:00:17.8]} 43.
Rh1 {[%clk 0:00:05.5]} 43... f5 {[%clk 0:00:15]} 44. gxf5 {[%clk 0:00:06.4]}
44... gxf5 {[%clk 0:00:15.7]} 45. Rh6+ {[%clk 0:00:06.7]} 45... Kd7 {[%clk
0:00:16.2]} 46. Kf3 {[%clk 0:00:05.6]} 46... f4 {[%clk 0:00:15.3]} 47. Ng4
{[%clk 0:00:05.5]} 47... e4+ {[%clk 0:00:15.8]} 48. Kf2 {[%clk 0:00:05.3]} 48...
e3+ {[%clk 0:00:11.8]} 49. Kf3 {[%clk 0:00:05]} 49... Na4 {[%clk 0:00:11.1]} 50.
Ne5+ {[%clk 0:00:05.2]} 50... Kd8 {[%clk 0:00:11.3]} 51. Rd6+ {[%clk 0:00:05.3]}
51... Kc7 {[%clk 0:00:10.9]} 52. Rc6+ {[%clk 0:00:04.9]} 52... Kb7 {[%clk
0:00:11.4]} 53. Nd7 {[%clk 0:00:04.1]} 53... Re8 {[%clk 0:00:09.6]} 54. Re6
{[%clk 0:00:01.8]} 54... Rd8 {[%clk 0:00:04.7]} 55. Nf6 {[%clk 0:00:01]} 55...
Nxb2 {[%clk 0:00:05]} 56. Kxf4 {[%clk 0:00:00.7]} 56... Nc4 {[%clk 0:00:05.6]}
57. Re4 {[%clk 0:00:00.9]} 57... Rf8 {[%clk 0:00:05]} 58. Re7+ {[%clk 0:00:01]}
58... Kb6 {[%clk 0:00:04.9]} 59. Kf5 {[%clk 0:00:01.9]} 59... Kc5 {[%clk
0:00:05.1]} 60. Re4 {[%clk 0:00:01]} 60... Nd6+ {[%clk 0:00:04.8]} 61. Ke5
{[%clk 0:00:01]} 61... Nxe4 {[%clk 0:00:04.6]} 62. Nxe4+ {[%clk 0:00:01.9]}
62... Kc4 {[%clk 0:00:04.2]} 63. Ng3 {[%clk 0:00:01]} 63... Re8+ {[%clk
0:00:03.8]} 0-1

[Event "Late-Titled-Tuesday-Blitz-May-28-2024"]
[Site "Chess.com"]
[Date "2024.05.28"]
[Round "5"]
[White "colegiodemadrid"]
[Black "juancruzarias"]
[Result "1/2-1/2"]
[WhiteElo "2510"]
[BlackElo "2658"]
[TimeControl "180+1"]
[EndTime "14:57:18 PDT"]
[Termination "Game drawn - insufficient material"]

1. d4 {[%clk 0:03:00.9]} 1... d5 {[%clk 0:02:59.5]} 2. c4 {[%clk 0:03:00.3]}
2... e6 {[%clk 0:02:58.9]} 3. Nc3 {[%clk 0:02:59.7]} 3... Nf6 {[%clk 0:02:58.5]}
4. cxd5 {[%clk 0:03:00.2]} 4... exd5 {[%clk 0:02:57.8]} 5. Bg5 {[%clk
0:02:59.3]} 5... c6 {[%clk 0:02:58]} 6. e3 {[%clk 0:02:59.8]} 6... h6 {[%clk
0:02:58.1]} 7. Bh4 {[%clk 0:02:59.4]} 7... Be7 {[%clk 0:02:56.2]} 8. Bd3 {[%clk
0:02:59.3]} 8... O-O {[%clk 0:02:54.9]} 9. h3 {[%clk 0:02:55]} 9... Ne4 {[%clk
0:02:50.3]} 10. Bxe7 {[%clk 0:02:49.2]} 10... Qxe7 {[%clk 0:02:51.2]} 11. Nf3
{[%clk 0:02:49]} 11... Bf5 {[%clk 0:02:50]} 12. O-O {[%clk 0:02:47.9]} 12... Nd7
{[%clk 0:02:50]} 13. Qc2 {[%clk 0:02:38.7]} 13... Rfe8 {[%clk 0:02:44.7]} 14.
Nd2 {[%clk 0:02:29.4]} 14... Nxd2 {[%clk 0:02:30.9]} 15. Qxd2 {[%clk 0:02:24.3]}
15... Bxd3 {[%clk 0:02:31.3]} 16. Qxd3 {[%clk 0:02:25.2]} 16... Nb6 {[%clk
0:02:27.9]} 17. b3 {[%clk 0:02:23.7]} 17... Nc8 {[%clk 0:02:27.2]} 18. a4 {[%clk
0:02:22.2]} 18... Nd6 {[%clk 0:02:27]} 19. Rac1 {[%clk 0:02:17]} 19... a6 {[%clk
0:02:26.7]} 20. Qc2 {[%clk 0:02:16.3]} 20... Qg5 {[%clk 0:02:20.4]} 21. Ne2
{[%clk 0:02:12.3]} 21... g6 {[%clk 0:02:15.7]} 22. Nf4 {[%clk 0:02:10.9]} 22...
h5 {[%clk 0:02:12.1]} 23. Nd3 {[%clk 0:02:02.8]} 23... Re7 {[%clk 0:02:06]} 24.
Nc5 {[%clk 0:02:02.3]} 24... Rae8 {[%clk 0:02:03.6]} 25. Rce1 {[%clk 0:01:57.8]}
25... Nf5 {[%clk 0:01:45]} 26. Nd3 {[%clk 0:01:40.8]} 26... Nh4 {[%clk
0:01:40.4]} 27. f4 {[%clk 0:01:34.2]} 27... Qf6 {[%clk 0:01:33.8]} 28. Ne5
{[%clk 0:01:32.3]} 28... Nf5 {[%clk 0:01:30.5]} 29. Rf3 {[%clk 0:01:02.9]} 29...
Nd6 {[%clk 0:01:29.1]} 30. b4 {[%clk 0:01:01.2]} 30... Qf5 {[%clk 0:01:21.2]}
31. Qxf5 {[%clk 0:01:00.3]} 31... Nxf5 {[%clk 0:01:19.9]} 32. g4 {[%clk
0:00:59.7]} 32... hxg4 {[%clk 0:01:19.2]} 33. hxg4 {[%clk 0:00:59.5]} 33... Nd6
{[%clk 0:01:19.7]} 34. Kf2 {[%clk 0:00:52]} 34... Kg7 {[%clk 0:01:19.1]} 35. Rh3
{[%clk 0:00:50.2]} 35... f6 {[%clk 0:01:18.9]} 36. Nd3 {[%clk 0:00:46.7]} 36...
Ne4+ {[%clk 0:01:17.5]} 37. Kg2 {[%clk 0:00:45.6]} 37... Rh8 {[%clk 0:01:15.5]}
38. Rxh8 {[%clk 0:00:43.6]} 38... Kxh8 {[%clk 0:01:16.4]} 39. Nc5 {[%clk
0:00:39.9]} 39... Nd6 {[%clk 0:01:15.2]} 40. Kf3 {[%clk 0:00:39]} 40... Kg7
{[%clk 0:01:13.5]} 41. Rg1 {[%clk 0:00:29.6]} 41... Nc4 {[%clk 0:01:12.5]} 42.
Re1 {[%clk 0:00:29.1]} 42... Nd6 {[%clk 0:01:09.4]} 43. a5 {[%clk 0:00:29.1]}
43... Re8 {[%clk 0:01:08.5]} 44. Rh1 {[%clk 0:00:25.3]} 44... Nc4 {[%clk
0:01:01.8]} 45. Re1 {[%clk 0:00:24.3]} 45... Re7 {[%clk 0:01:00.7]} 46. Kf2
{[%clk 0:00:23.5]} 46... Na3 {[%clk 0:00:50.3]} 47. Rc1 {[%clk 0:00:18.9]} 47...
Nb5 {[%clk 0:00:46.2]} 48. Kf3 {[%clk 0:00:18.1]} 48... Nd6 {[%clk 0:00:46.5]}
49. Rh1 {[%clk 0:00:17.6]} 49... Nf7 {[%clk 0:00:42.1]} 50. Rg1 {[%clk 0:00:15]}
50... Nd6 {[%clk 0:00:38.2]} 51. Rc1 {[%clk 0:00:13.1]} 51... Re8 {[%clk
0:00:37.4]} 52. Rc3 {[%clk 0:00:12.5]} 52... Rh8 {[%clk 0:00:36.7]} 53. Kg2
{[%clk 0:00:10.5]} 53... Rh4 {[%clk 0:00:36]} 54. Kg3 {[%clk 0:00:10.9]} 54...
Rh1 {[%clk 0:00:35.8]} 55. Ne6+ {[%clk 0:00:10.9]} 55... Kf7 {[%clk 0:00:35.7]}
56. Nc5 {[%clk 0:00:11.1]} 56... Rb1 {[%clk 0:00:33.7]} 57. g5 {[%clk
0:00:09.4]} 57... Rxb4 {[%clk 0:00:31.1]} 58. gxf6 {[%clk 0:00:08.7]} 58... Kxf6
{[%clk 0:00:30.8]} 59. Rc2 {[%clk 0:00:08.7]} 59... Rb1 {[%clk 0:00:28.2]} 60.
Kf3 {[%clk 0:00:09]} 60... Re1 {[%clk 0:00:27.7]} 61. Rb2 {[%clk 0:00:08.8]}
61... Rxe3+ {[%clk 0:00:25.6]} 62. Kxe3 {[%clk 0:00:09.2]} 62... Nc4+ {[%clk
0:00:26.5]} 63. Kf3 {[%clk 0:00:09]} 63... Nxb2 {[%clk 0:00:27.4]} 64. Nxb7
{[%clk 0:00:09.6]} 64... Nc4 {[%clk 0:00:28.2]} 65. Nc5 {[%clk 0:00:10.1]} 65...
Nxa5 {[%clk 0:00:28.7]} 66. Nxa6 {[%clk 0:00:10.8]} 66... Nc4 {[%clk 0:00:28.4]}
67. Nb4 {[%clk 0:00:11.1]} 67... Na5 {[%clk 0:00:28.6]} 68. Nd3 {[%clk
0:00:11.2]} 68... Nb3 {[%clk 0:00:26.6]} 69. Ke3 {[%clk 0:00:11.1]} 69... Ke6
{[%clk 0:00:26]} 70. Ne5 {[%clk 0:00:11.5]} 70... c5 {[%clk 0:00:24.7]} 71. dxc5
{[%clk 0:00:12]} 71... Nxc5 {[%clk 0:00:24.2]} 72. Nxg6 {[%clk 0:00:12.4]} 72...
Nd7 {[%clk 0:00:21.4]} 73. Kd4 {[%clk 0:00:11.7]} 73... Nf6 {[%clk 0:00:22.3]}
74. Nh4 {[%clk 0:00:11.2]} 74... Nh5 {[%clk 0:00:22]} 75. f5+ {[%clk 0:00:11.7]}
75... Kf6 {[%clk 0:00:22.2]} 76. Kxd5 {[%clk 0:00:11.6]} 76... Ng3 {[%clk
0:00:22.9]} 77. Kd4 {[%clk 0:00:10.4]} 77... Nxf5+ {[%clk 0:00:23.8]} 1/2-1/2

[Event "Late-Titled-Tuesday-Blitz-May-28-2024"]
[Site "Chess.com"]
[Date "2024.05.28"]
[Round "5"]
[White "TokChess"]
[Black "2L8IWUN"]
[Result "1-0"]
[WhiteElo "2504"]
[BlackElo "2170"]
[TimeControl "180+1"]
[EndTime "14:57:18 PDT"]
[Termination "TokChess won by resignation"]

1. d4 {[%clk 0:02:42]} 1... Nf6 {[%clk 0:02:59]} 2. Bg5 {[%clk 0:02:41.2]} 2...
e6 {[%clk 0:02:53.3]} 3. e4 {[%clk 0:02:39.9]} 3... h6 {[%clk 0:02:53.8]} 4.
Bxf6 {[%clk 0:02:39.9]} 4... Qxf6 {[%clk 0:02:54.7]} 5. e5 {[%clk 0:02:40.5]}
5... Qd8 {[%clk 0:02:54.6]} 6. c3 {[%clk 0:02:40.4]} 6... d5 {[%clk 0:02:49.7]}
7. exd6 {[%clk 0:02:41.3]} 7... Bxd6 {[%clk 0:02:49.3]} 8. Nf3 {[%clk
0:02:40.4]} 8... O-O {[%clk 0:02:47.6]} 9. Bd3 {[%clk 0:02:41]} 9... Nc6 {[%clk
0:02:48.1]} 10. O-O {[%clk 0:02:37]} 10... e5 {[%clk 0:02:48.4]} 11. d5 {[%clk
0:02:21.6]} 11... Ne7 {[%clk 0:02:35.3]} 12. c4 {[%clk 0:02:15]} 12... c6 {[%clk
0:02:23]} 13. dxc6 {[%clk 0:02:11.4]} 13... Nxc6 {[%clk 0:02:23.9]} 14. Nc3
{[%clk 0:02:10.3]} 14... Re8 {[%clk 0:02:10.9]} 15. Re1 {[%clk 0:02:03.8]} 15...
b6 {[%clk 0:02:04.1]} 16. Be4 {[%clk 0:01:52.6]} 16... Bb7 {[%clk 0:02:02.5]}
17. Qd2 {[%clk 0:01:41.2]} 17... Bb4 {[%clk 0:01:20.1]} 18. Qe3 {[%clk
0:01:35.3]} 18... Bc5 {[%clk 0:01:14.7]} 19. Qc1 {[%clk 0:01:28.2]} 19... Na5
{[%clk 0:00:43.2]} 20. Bxb7 {[%clk 0:01:26.8]} 20... Nxb7 {[%clk 0:00:44.1]} 21.
Qc2 {[%clk 0:01:13.5]} 21... f6 {[%clk 0:00:41.4]} 22. Rad1 {[%clk 0:01:12.7]}
22... Qe7 {[%clk 0:00:40.7]} 23. Nd5 {[%clk 0:01:12.6]} 23... Qf7 {[%clk
0:00:40.4]} 24. b4 {[%clk 0:01:06.6]} 24... Bf8 {[%clk 0:00:39.4]} 25. Nh4
{[%clk 0:01:01.7]} 25... Rac8 {[%clk 0:00:38.7]} 26. Nf5 {[%clk 0:00:51.5]}
26... Red8 {[%clk 0:00:38.7]} 27. Qe4 {[%clk 0:00:43.7]} 27... Nd6 {[%clk
0:00:36.8]} 28. Nxd6 {[%clk 0:00:43.4]} 28... Rxd6 {[%clk 0:00:37.2]} 29. b5
{[%clk 0:00:34.8]} 29... Rdd8 {[%clk 0:00:35]} 30. h4 {[%clk 0:00:34]} 30... Bc5
{[%clk 0:00:33.4]} 31. g3 {[%clk 0:00:29.8]} 31... Bd4 {[%clk 0:00:28]} 32. Rxd4
{[%clk 0:00:26.2]} 32... exd4 {[%clk 0:00:28.9]} 33. Ne7+ {[%clk 0:00:26.7]}
33... Kh8 {[%clk 0:00:22.3]} 34. Nxc8 {[%clk 0:00:27.6]} 34... Rxc8 {[%clk
0:00:22.5]} 35. Qxd4 {[%clk 0:00:24.3]} 35... Qxc4 {[%clk 0:00:21.4]} 36. Re8+
{[%clk 0:00:19]} 36... Kh7 {[%clk 0:00:20]} 37. Re4 {[%clk 0:00:09.8]} 37...
Qxd4 {[%clk 0:00:19.6]} 38. Rxd4 {[%clk 0:00:10.1]} 38... Rc5 {[%clk 0:00:18.4]}
39. a4 {[%clk 0:00:08.3]} 39... Rc1+ {[%clk 0:00:16.8]} 40. Kg2 {[%clk
0:00:08.3]} 40... Ra1 {[%clk 0:00:17.7]} 41. h5 {[%clk 0:00:08.8]} 41... Kg8
{[%clk 0:00:17.1]} 42. g4 {[%clk 0:00:08.7]} 42... Kf7 {[%clk 0:00:17.4]} 43.
Kg3 {[%clk 0:00:09.2]} 43... Ra3+ {[%clk 0:00:17.4]} 44. f3 {[%clk 0:00:09.5]}
44... Ra2 {[%clk 0:00:16.5]} 45. Rc4 {[%clk 0:00:09.7]} 45... Ra3 {[%clk
0:00:16.3]} 46. Rc7+ {[%clk 0:00:09.7]} 46... Kg8 {[%clk 0:00:15.4]} 47. Rxa7
{[%clk 0:00:10.6]} 47... Kh7 {[%clk 0:00:16]} 48. Kf4 {[%clk 0:00:10.7]} 48...
Ra2 {[%clk 0:00:14.6]} 49. Ke4 {[%clk 0:00:11]} 49... Ra3 {[%clk 0:00:14.4]} 50.
f4 {[%clk 0:00:09.9]} 50... Rc3 {[%clk 0:00:07.6]} 51. Ra6 {[%clk 0:00:07.8]}
51... Rc1 {[%clk 0:00:06.1]} 52. Rxb6 {[%clk 0:00:06.7]} 52... Rc4+ {[%clk
0:00:06.5]} 53. Kf5 {[%clk 0:00:06.3]} 53... Rxa4 {[%clk 0:00:07.4]} 54. Rb7
{[%clk 0:00:05.3]} 54... Rb4 {[%clk 0:00:07.8]} 55. b6 {[%clk 0:00:05.8]} 55...
Rb5+ {[%clk 0:00:07.6]} 56. Ke6 {[%clk 0:00:06.4]} 56... Rb4 {[%clk 0:00:08.2]}
57. Rb8 {[%clk 0:00:04.4]} 57... Rxf4 {[%clk 0:00:06.7]} 58. Kd5 {[%clk
0:00:04.8]} 58... Rb4 {[%clk 0:00:07]} 59. Kc5 {[%clk 0:00:05.1]} 59... Rb1
{[%clk 0:00:07.2]} 60. Rd8 {[%clk 0:00:05.1]} 60... Rc1+ {[%clk 0:00:07.9]} 61.
Kb5 {[%clk 0:00:04.5]} 61... Rb1+ {[%clk 0:00:08.1]} 62. Kc6 {[%clk 0:00:05.1]}
62... Rc1+ {[%clk 0:00:08.2]} 63. Kb7 {[%clk 0:00:05]} 63... Rb1 {[%clk
0:00:09.1]} 64. Rd5 {[%clk 0:00:04.6]} 64... Rb4 {[%clk 0:00:09.4]} 65. Kc6
{[%clk 0:00:04.6]} 65... Rxg4 {[%clk 0:00:09.5]} 66. b7 {[%clk 0:00:04.8]} 66...
Rb4 {[%clk 0:00:09.8]} 67. Rb5 {[%clk 0:00:05.5]} 67... Rxb5 {[%clk 0:00:10.5]}
68. Kxb5 {[%clk 0:00:05.7]} 68... g6 {[%clk 0:00:11.4]} 69. b8=Q {[%clk
0:00:05.7]} 69... gxh5 {[%clk 0:00:11.3]} 70. Qf4 {[%clk 0:00:05.8]} 70... Kg6
{[%clk 0:00:12.2]} 71. Kc5 {[%clk 0:00:06.4]} 71... f5 {[%clk 0:00:12.6]} 72.
Kd5 {[%clk 0:00:07.3]} 72... Kf6 {[%clk 0:00:13.3]} 73. Kd4 {[%clk 0:00:07.5]}
73... Kf7 {[%clk 0:00:14.2]} 74. Ke5 {[%clk 0:00:07.9]} 74... Ke7 {[%clk
0:00:15.1]} 75. Qxf5 {[%clk 0:00:08.4]} 1-0